bitfinex/quotes_SOLUSD_20251106
["timestamp","ask_amount","ask_price","bid_price","bid_amount"]
[1762392356827,22.24320371,160.09,160.08,0.1]
[1762392359704,22.24320371,160.09,160.0,10.15205427]
[1762392359705,1.99999999,160.02,160.0,10.15205427]
[1762392359925,15.40671736,160.01,160.0,9.56205427]
[1762392360133,22.86671736,160.01,160.0,9.56205427]
[1762392360433,22.86671736,160.01,159.91,1.33520428]
[1762392360434,20.592,159.98,159.91,1.33520428]
[1762392360631,5.61788967,159.96,159.91,1.33520428]
[1762392361331,15.40671736,159.96,159.91,1.33520428]
[1762392361735,8.07973227,159.97,159.91,1.33520428]
[1762392362036,7.46,159.96,159.93,6.32788967]
[1762392362412,7.46,159.96,159.95,0.81]
[1762392362821,7.46,159.96,159.95,0.1]
[1762392363507,20.592,159.99,159.95,0.1]
[1762392363734,30.38082769,159.96,159.95,0.1]
[1762392363908,35.99871736,159.96,159.95,0.1]
[1762392364309,20.592,159.96,159.95,0.1]
[1762392364521,7.48,159.96,159.95,0.1]
[1762392365418,13.09788967,159.96,159.95,0.1]
[1762392365924,23.50644963,159.96,159.95,0.1]
[1762392366234,29.75801252,159.96,159.95,0.1]
[1762392367506,17.88855996,159.96,159.95,0.1]
[1762392367710,23.50644963,159.96,159.95,0.1]
[1762392369542,29.75801252,159.96,159.95,0.1]
[1762392370409,32.06117658,159.96,159.95,0.1]
[1762392371348,16.04195425,159.92,159.91,1.33520428]
[1762392371522,8.11973227,159.92,159.91,1.33520428]
[1762392371713,16.040786,159.92,159.91,1.33520428]
[1762392372017,8.11973227,159.92,159.91,1.33520428]
[1762392372218,20.592,159.92,159.91,2.04520428]
[1762392372426,7.5,159.92,159.91,2.04520428]
[1762392372818,28.092,159.92,159.91,2.04520428]
[1762392373410,28.092,159.92,159.91,1.33520428]
[1762392373838,28.092,159.92,159.91,2.04520428]
[1762392374057,45.80188142,159.92,159.91,1.33520428]
[1762392374544,45.82188142,159.92,159.91,1.33520428]
[1762392375339,52.07500798,159.92,159.91,1.33520428]
[1762392375746,45.82188142,159.92,159.91,1.33520428]
[1762392375942,7.52,159.92,159.91,1.33520428]
[1762392376121,7.52,159.94,159.91,2.04520428]
[1762392376314,20.592,159.92,159.91,2.04520428]
[1762392376530,7.52,159.93,159.91,1.33520428]
[1762392377041,20.592,159.92,159.91,2.04520428]
[1762392378627,20.592,159.92,159.91,1.33520428]
[1762392379100,20.592,159.92,159.91,2.04520428]
[1762392379361,7.52,159.93,159.91,2.04520428]
[1762392379727,20.592,159.92,159.91,1.33520428]
[1762392380031,7.52,159.93,159.92,0.71]
[1762392380230,9.78882769,159.99,159.92,8.63105373]
[1762392380430,7.52,159.98,159.96,7.92105373]
[1762392380636,28.112,159.98,159.96,7.92105373]
[1762392380942,20.592,159.96,159.95,7.92105373]
[1762392381125,20.592,159.97,159.95,7.92105373]
[1762392381445,20.592,159.97,159.95,8.63105373]
[1762392382633,7.52,159.98,159.95,8.63105373]
[1762392382947,7.52,159.98,159.96,7.92105373]
[1762392383535,7.52,159.98,159.95,8.63105373]
[1762392384646,28.112,159.98,159.95,8.63105373]
[1762392385241,28.112,159.98,159.95,8.64105373]
[1762392385952,28.112,159.98,159.96,0.72]
[1762392386153,28.112,159.98,159.95,7.92105373]
[1762392386331,28.112,159.98,159.95,8.64105373]
[1762392387357,28.112,159.98,159.91,1.33520428]
[1762392387655,36.03305373,159.98,159.93,7.92105373]
[1762392387854,7.92105373,159.97,159.92,0.72]
[1762392388051,7.5,159.96,159.92,8.64105373]
[1762392388430,7.5,159.96,159.93,0.72]
[1762392388629,7.5,159.96,159.93,8.64105373]
[1762392391756,7.5,159.96,159.93,7.92105373]
[1762392391957,7.5,159.96,159.94,8.64105373]
[1762392392161,7.5,159.96,159.95,7.92105373]
[1762392392465,7.5,159.96,159.95,8.64105373]
[1762392396445,20.592,159.98,159.95,8.64105373]
[1762392396663,28.052,159.98,159.96,8.57105373]
[1762392397050,28.052,159.98,159.97,0.65]
[1762392397262,7.46,159.98,159.97,0.65]
[1762392397763,7.46,159.98,159.97,8.57105373]
[1762392398453,7.46,160.0,159.97,8.57105373]
[1762392398651,7.46,160.0,159.98,0.65]
[1762392398960,7.46,160.0,159.98,8.57105373]
[1762392399566,7.46,160.0,159.99,0.65]
[1762392399742,7.46,160.0,159.98,7.92105373]
[1762392399743,7.46,160.0,159.98,0.65]
[1762392399939,7.46,160.0,159.99,0.65]
[1762392401870,7.46,160.0,159.95,0.65]
[1762392402047,7.46,160.0,159.96,0.65]
[1762392402642,28.51305373,159.99,159.94,0.65]
[1762392402849,7.92105373,159.97,159.94,0.65]
[1762392403049,7.46,159.96,159.94,0.65]
[1762392404673,7.46,159.96,159.95,7.92105373]
[1762392405050,7.46,159.96,159.95,8.57105373]
[1762392405250,7.46,159.96,159.95,0.65]
[1762392405465,7.46,159.96,159.95,14.82300746]
[1762392405974,7.46,159.98,159.95,14.82300746]
[1762392406184,7.46,159.98,159.96,8.57105373]
[1762392406353,7.46,159.98,159.97,0.65]
[1762392408744,7.46,159.98,159.92,6.2528121]
[1762392408949,7.46,159.98,159.94,8.57105373]
[1762392409265,7.46,159.98,159.96,7.92105373]
[1762392409443,7.46,159.98,159.95,0.65]
[1762392409851,7.46,159.98,159.95,8.57105373]
[1762392410653,7.46,159.98,159.96,0.65]
[1762392415185,7.46,159.98,159.96,4.03017013]
[1762392416305,7.46,159.98,159.97,0.71]
[1762392417101,32.0519024,159.98,159.91,11.6787676]
[1762392417396,3.38017013,159.94,159.91,2.04520428]
[1762392417695,7.42,159.93,159.91,2.04520428]
[1762392418472,7.42,159.93,159.92,0.71]
[1762392419425,7.42,159.93,159.91,1.33520428]
[1762392419426,15.33779611,159.93,159.91,1.33520428]
[1762392419578,20.592,159.92,159.91,1.33520428]
[1762392419782,28.50979611,159.92,159.91,1.33520428]
[1762392421211,7.42,159.93,159.91,1.33520428]
[1762392421409,20.592,159.92,159.91,1.33520428]
[1762392421578,35.92979611,159.92,159.91,1.33520428]
[1762392421781,28.012,159.92,159.91,2.04520428]
[1762392421982,28.012,159.92,159.91,1.33520428]
[1762392423219,28.012,159.92,159.91,2.04520428]
[1762392423584,7.42,159.92,159.91,2.04520428]
[1762392424194,0.71,160.0,159.91,16.21651799]
[1762392424403,7.42,159.99,159.96,7.91779611]
[1762392424907,7.42,159.99,159.97,0.71]
[1762392425312,7.42,159.99,159.95,6.96171874]
[1762392425503,7.42,159.99,159.96,8.62779611]
[1762392427309,7.42,159.99,159.98,7.91779611]
[1762392427590,7.42,159.99,159.97,8.62779611]
[1762392427792,7.42,159.99,159.98,7.91779611]
[1762392427994,7.42,159.99,159.98,8.62779611]
[1762392428408,64.61134453,160.12,159.98,8.62779611]
[1762392428409,7.91779611,160.06,159.98,8.62779611]
[1762392428717,7.91779611,160.06,159.96,21.8803949]
[1762392428718,7.42,160.05,160.02,7.91779611]
[1762392429115,7.42,160.05,160.02,0.71]
[1762392429296,7.42,160.05,160.01,7.91779611]
[1762392429697,7.42,160.05,160.02,0.71]
[1762392429898,7.42,160.05,160.03,7.91779611]
[1762392430314,7.42,160.05,160.03,0.71]
[1762392430525,7.42,160.05,160.04,6.33773461]
[1762392431419,7.42,160.05,160.04,12.5861725]
[1762392431594,26.21973461,160.11,160.04,12.5861725]
[1762392431791,7.4,160.1,160.08,5.62773461]
[1762392431998,7.4,160.09,160.07,5.62773461]
[1762392432206,7.4,160.09,160.08,5.62773461]
[1762392432697,7.4,160.1,160.08,6.33773461]
[1762392432898,7.4,160.1,160.09,5.62773461]
[1762392433098,7.4,160.1,160.09,6.33773461]
[1762392434210,7.4,160.1,160.09,12.58422096]
[1762392434412,20.592,160.13,160.09,6.33773461]
[1762392434616,7.4,160.12,160.11,5.62773461]
[1762392435008,7.4,160.12,160.1,0.71]
[1762392435328,7.4,160.12,160.11,5.62773461]
[1762392435702,7.4,160.12,160.11,6.33773461]
[1762392436225,7.4,160.12,160.11,12.58344068]
[1762392436600,7.4,160.12,160.11,6.33773461]
[1762392439136,7.4,160.12,160.11,0.71]
[1762392439635,0.2,160.14,160.11,12.58344068]
[1762392439801,0.2,160.14,160.13,5.62773461]
[1762392440229,0.2,160.14,160.13,0.71]
[1762392440525,0.2,160.14,160.13,6.33773461]
[1762392441012,0.2,160.14,160.13,0.71]
[1762392441213,0.2,160.14,160.13,6.95492599]
[1762392442516,0.2,160.14,160.13,12.5826606]
[1762392443431,0.2,160.14,160.13,0.71]
[1762392443625,0.2,160.14,160.13,12.5826606]
[1762392444927,0.2,160.14,160.13,22.37148829]
[1762392446024,0.2,160.16,160.14,9.78882769]
[1762392446323,0.2,160.16,160.15,5.62773461]
[1762392446526,7.38,160.23,160.15,29.75070841]
[1762392446725,7.38,160.23,160.16,10.49882769]
[1762392447040,7.38,160.23,160.21,5.62773461]
[1762392447537,7.38,160.23,160.22,0.71]
[1762392448232,5.62773461,160.29,160.22,0.71]
[1762392448440,13.00773461,160.28,160.22,12.57891397]
[1762392448936,7.38,160.27,160.23,0.71]
[1762392449309,7.38,160.27,160.23,6.33773461]
[1762392449711,7.38,160.27,160.24,0.71]
[1762392450516,20.592,160.24,160.18,0.71]
[1762392450938,7.38,160.23,160.18,6.33773461]
[1762392451118,7.38,160.23,160.2,5.62773461]
[1762392451319,7.38,160.23,160.19,0.71]
[1762392451516,7.38,160.23,160.22,5.62773461]
[1762392451916,7.38,160.23,160.22,6.33773461]
[1762392452434,27.972,160.25,160.22,6.33773461]
[1762392452948,27.972,160.25,160.22,0.71]
[1762392453123,27.972,160.25,160.21,5.62773461]
[1762392453124,27.972,160.25,160.23,0.71]
[1762392453944,27.972,160.25,160.21,6.33773461]
[1762392454128,27.972,160.25,160.22,0.71]
[1762392456749,20.592,160.25,160.22,0.71]
[1762392457056,7.36,160.24,160.22,0.71]
[1762392457236,7.36,160.24,160.22,6.33773461]
[1762392457968,27.952,160.24,160.18,0.67]
[1762392458152,34.25973461,160.24,160.18,6.29773461]
[1762392458355,27.952,160.24,160.2,2.15656483]
[1762392458656,27.952,160.24,160.21,0.67]
[1762392460032,28.632,160.24,160.2,2.15656483]
[1762392460237,28.632,160.24,160.21,0.67]
[1762392460238,27.952,160.24,160.21,0.67]
[1762392468264,0.68,160.29,160.23,2.15656483]
[1762392468462,7.36,160.28,160.24,2.15656483]
[1762392468846,7.36,160.28,160.25,0.67]
[1762392469468,20.592,160.25,160.2,2.82656483]
[1762392469665,7.36,160.24,160.2,2.82656483]
[1762392469867,7.36,160.24,160.21,0.67]
[1762392470780,7.36,160.24,160.21,2.82656483]
[1762392471275,7.36,160.24,160.22,0.67]
[1762392477456,9.51656483,160.24,160.19,0.7]
[1762392477662,7.36,160.24,160.19,2.85656483]
[1762392478147,7.36,160.24,160.2,0.7]
[1762392481079,7.36,160.24,160.15,0.7]
[1762392481080,22.74856483,160.21,160.15,0.7]
[1762392481274,22.74856483,160.21,160.18,2.15656483]
[1762392481275,7.36,160.2,160.18,2.15656483]
[1762392481804,7.36,160.2,160.08,0.7]
[1762392481805,20.592,160.16,160.08,0.7]
[1762392481967,2.15656483,160.13,160.08,0.7]
[1762392482276,7.36,160.12,160.08,0.7]
[1762392482468,9.51656483,160.12,160.08,0.7]
[1762392482666,7.36,160.12,160.08,0.7]
[1762392483577,7.36,160.12,160.1,2.15656483]
[1762392484168,8.07,160.12,160.08,0.7]
[1762392484587,8.07,160.12,160.08,2.15656483]
[1762392484588,21.302,160.11,160.08,2.15656483]
[1762392484888,21.302,160.11,160.04,0.7]
[1762392485090,21.302,160.11,160.06,2.15656483]
[1762392485091,0.71,160.1,160.06,2.15656483]
[1762392485295,7.36,160.09,160.06,2.15656483]
[1762392485589,20.592,160.06,160.02,2.15656483]
[1762392485811,20.592,160.06,160.01,2.15656483]
[1762392485812,7.36,160.05,160.01,2.15656483]
[1762392486302,8.07,160.05,160.01,2.15656483]
[1762392486478,0.71,160.04,160.01,2.15656483]
[1762392487817,7.36,160.05,160.03,2.15656483]
[1762392488184,7.36,160.05,160.04,2.15656483]
[1762392488384,15.62764789,160.09,160.04,2.15656483]
[1762392488692,0.71,160.13,160.08,2.15656483]
[1762392488899,20.592,160.1,160.09,2.15656483]
[1762392489387,8.07,160.12,160.09,2.15656483]
[1762392489581,0.71,160.11,160.09,2.15656483]
[1762392489781,0.71,160.11,160.04,6.24810895]
[1762392489782,20.592,160.1,160.04,6.24810895]
[1762392489981,20.592,160.1,160.02,15.62298427]
[1762392489982,20.592,160.06,160.0,6.25]
[1762392490205,7.36,160.05,160.01,2.15656483]
[1762392490406,7.36,160.05,160.03,2.15656483]
[1762392490594,8.07,160.05,160.03,2.15656483]
[1762392490913,7.36,160.05,160.02,2.15656483]
[1762392491287,7.36,160.05,160.02,0.7]
[1762392491510,0.71,160.11,160.04,2.15656483]
[1762392491811,7.36,160.1,160.08,2.15656483]
[1762392492000,7.36,160.09,160.08,2.15656483]
[1762392492308,7.36,160.09,160.05,0.7]
[1762392492793,7.36,160.09,160.08,3.37513021]
[1762392492998,8.07,160.09,160.02,21.87219519]
[1762392493196,7.36,160.09,160.06,3.37513021]
[1762392493504,7.36,160.09,160.07,4.07513021]
[1762392493817,7.36,160.09,160.08,3.37513021]
[1762392494204,7.36,160.09,160.08,4.07513021]
[1762392494699,7.36,160.09,160.08,3.37513021]
[1762392495619,7.36,160.09,160.08,4.07513021]
[1762392498018,7.36,160.09,160.08,3.37513021]
[1762392498205,7.36,160.09,160.08,4.07513021]
[1762392498601,7.36,160.09,160.08,3.37513021]
[1762392502816,8.08,160.09,160.08,3.37513021]
[1762392503044,7.36,160.09,160.08,3.37513021]
[1762392503623,8.08,160.09,160.08,3.37513021]
[1762392504419,1.99999999,160.04,159.93,0.66]
[1762392504621,9.78882769,160.01,159.93,0.66]
[1762392504835,7.97973227,160.0,159.96,3.37513021]
[1762392505040,8.69973227,160.0,159.96,3.37513021]
[1762392505210,8.08,160.0,159.99,3.47513021]
[1762392505406,7.36,160.0,159.99,3.47513021]
[1762392506840,0.61973227,160.07,159.99,13.76065106]
[1762392507019,7.36,160.06,160.04,3.37513021]
[1762392507202,8.08,160.06,160.03,3.37513021]
[1762392507623,21.312,160.05,160.03,3.37513021]
[1762392507833,21.312,160.05,160.0,0.66]
[1762392508127,21.312,160.05,160.03,3.37513021]
[1762392509227,21.312,160.05,160.0,0.66]
[1762392509228,21.312,160.05,160.04,3.37513021]
[1762392511135,7.36,160.06,160.04,3.37513021]
[1762392511318,27.952,160.06,160.05,3.37513021]
[1762392513946,28.672,160.06,160.05,3.37513021]
[1762392519436,28.672,160.06,160.01,0.72]
[1762392519747,28.672,160.06,160.05,3.37513021]
[1762392520952,0.72,160.11,160.05,0.72]
[1762392521153,6.86539125,160.12,160.08,3.37513021]
[1762392521154,7.36,160.09,160.08,3.37513021]
[1762392521354,27.952,160.09,160.08,3.37513021]
[1762392521726,27.952,160.09,160.05,0.72]
[1762392521939,0.72,160.08,160.02,0.72]
[1762392522140,28.672,160.09,160.07,3.37513021]
[1762392522651,0.72,160.08,160.07,3.37513021]
[1762392523457,27.952,160.09,160.07,3.37513021]
[1762392523764,28.672,160.09,160.07,3.37513021]
[1762392525442,28.672,160.09,160.01,0.72]
[1762392525443,0.72,160.08,160.01,0.72]
[1762392525656,0.72,160.08,160.05,3.37513021]
[1762392525858,1.33973227,160.08,160.05,3.37513021]
[1762392526071,1.33973227,160.08,160.06,3.37513021]
[1762392527373,27.952,160.09,160.06,3.37513021]
[1762392527548,28.672,160.09,160.06,3.37513021]
[1762392528261,0.72,160.08,160.06,3.37513021]
[1762392529656,0.72,160.08,160.03,0.72]
[1762392529871,0.72,160.08,160.06,3.37513021]
[1762392530350,0.72,160.08,160.05,3.37513021]
[1762392530544,0.72,160.08,160.06,3.37513021]
[1762392530750,28.672,160.09,160.05,3.37513021]
[1762392530964,11.12855996,160.08,160.03,0.72]
[1762392531146,20.592,160.04,159.99,0.82]
[1762392531352,7.36,160.03,160.0,3.37513021]
[1762392531758,7.36,160.03,160.0,4.09513021]
[1762392534445,7.36,160.03,160.01,0.7]
[1762392534652,7.36,160.02,160.01,0.7]
[1762392534856,7.36,160.03,160.01,4.07513021]
[1762392535173,7.36,160.02,160.01,0.7]
[1762392535386,7.36,160.02,160.0,3.37513021]
[1762392535852,7.36,160.02,160.0,0.7]
[1762392536047,7.36,160.02,160.01,4.07513021]
[1762392537559,7.36,160.02,159.99,0.8]
[1762392537560,27.952,160.02,159.99,0.8]
[1762392537768,27.952,160.02,160.0,4.07513021]
[1762392537973,7.36,160.02,160.0,4.07513021]
[1762392538284,7.36,160.02,160.01,3.37513021]
[1762392538776,7.36,160.02,160.0,4.07513021]
[1762392538979,7.36,160.02,160.01,3.37513021]
[1762392539152,7.36,160.02,160.01,4.07513021]
[1762392539479,7.36,160.02,160.01,0.7]
[1762392540354,7.36,160.02,160.0,3.37513021]
[1762392540666,7.36,160.02,160.0,4.07513021]
[1762392541162,7.36,160.02,160.0,3.37513021]
[1762392541365,7.36,160.02,160.01,0.7]
[1762392541678,7.36,160.02,159.99,0.8]
[1762392541863,0.67,160.01,159.99,0.1]
[1762392542182,31.00055996,160.0,159.99,0.1]
[1762392542354,34.37569017,160.0,159.99,0.1]
[1762392542554,3.37513021,160.0,159.99,0.1]
[1762392542757,7.36,160.0,159.99,0.1]
[1762392542953,7.36,160.0,159.99,0.8]
[1762392542954,20.592,160.0,159.99,0.8]
[1762392543188,7.36,160.02,159.99,10.42552085]
[1762392543477,7.36,160.02,160.0,4.07513021]
[1762392543985,7.36,160.02,160.0,0.7]
[1762392544486,7.36,160.02,160.01,3.37513021]
[1762392544700,7.36,160.03,160.01,0.7]
[1762392544865,7.36,160.03,160.0,21.87495401]
[1762392544866,7.36,160.04,160.02,4.07513021]
[1762392545064,7.36,160.04,160.03,4.07513021]
[1762392545672,18.16973227,160.15,160.04,20.592]
[1762392545972,7.36,160.14,160.11,3.37513021]
[1762392546175,7.36,160.13,160.06,21.86679994]
[1762392546379,7.36,160.12,160.1,3.37513021]
[1762392546563,7.36,160.12,160.11,3.37513021]
[1762392546765,7.36,160.12,160.1,3.37513021]
[1762392546979,7.36,160.12,160.07,0.7]
[1762392547277,7.36,160.12,160.09,3.37513021]
[1762392547484,7.36,160.12,160.1,3.37513021]
[1762392547985,7.36,160.12,160.1,0.7]
[1762392548492,7.36,160.12,160.08,0.7]
[1762392549060,11.40513021,160.12,160.06,4.07513021]
[1762392549261,11.40513021,160.12,160.06,3.37513021]
[1762392549480,11.40513021,160.12,160.07,0.7]
[1762392550278,10.73513021,160.12,160.07,0.7]
[1762392552088,11.40513021,160.12,160.07,0.7]
[1762392552384,8.57043433,160.11,160.04,0.7]
[1762392552582,8.57043433,160.1,160.04,8.60043433]
[1762392552999,8.57043433,160.1,160.05,0.7]
[1762392553459,8.57043433,160.09,160.03,7.90043433]
[1762392553660,15.26043433,160.08,160.02,8.60043433]
[1762392553962,7.36,160.08,160.03,7.90043433]
[1762392554160,7.36,160.08,160.03,8.60043433]
[1762392554461,7.36,160.08,160.04,0.7]
[1762392557376,7.36,160.08,160.04,6.32720822]
[1762392557591,7.36,160.08,160.04,0.7]
[1762392558079,7.36,160.08,160.0,0.7]
[1762392558080,20.592,160.04,160.0,0.7]
[1762392558291,26.21920822,160.01,159.99,0.1]
[1762392558597,20.592,160.01,159.99,0.1]
[1762392559708,7.36,160.0,159.99,0.1]
[1762392561306,7.36,160.0,159.99,12.67759886]
[1762392561606,7.36,160.0,159.99,0.8]
[1762392562292,7.36,160.0,159.99,7.05039064]
[1762392562693,5.62720822,160.04,159.99,7.05039064]
[1762392562896,7.36,160.03,159.99,7.05039064]
[1762392563098,7.36,160.03,160.0,0.71]
[1762392563285,7.36,160.03,160.0,6.33720822]
[1762392563481,7.36,160.03,160.01,5.62720822]
[1762392563684,7.36,160.03,160.02,5.62720822]
[1762392564086,7.36,160.03,160.02,6.33720822]
[1762392564501,7.36,160.03,160.02,12.58642706]
[1762392564708,6.32720822,160.11,160.02,12.58642706]
[1762392565005,7.36,160.1,160.05,5.62720822]
[1762392565387,7.36,160.1,160.06,6.33720822]
[1762392565786,7.36,160.1,160.07,0.71]
[1762392566011,7.36,160.1,160.07,6.33720822]
[1762392566188,7.36,160.1,160.08,5.62720822]
[1762392566383,7.36,160.1,160.09,5.62720822]
[1762392566692,7.36,160.1,160.08,0.71]
[1762392567599,7.36,160.1,160.08,6.33720822]
[1762392567792,7.36,160.1,160.03,42.4628992]
[1762392568007,8.06,160.1,160.05,0.71]
[1762392568210,8.06,160.1,160.05,6.33720822]
[1762392568594,7.36,160.1,160.05,11.87495374]
[1762392568918,7.36,160.1,160.06,0.71]
[1762392570008,7.36,160.1,160.06,6.95757484]
[1762392571111,7.36,160.1,160.07,0.71]
[1762392571294,7.36,160.1,160.07,6.33720822]
[1762392571492,7.36,160.1,160.08,6.33720822]
[1762392571815,7.36,160.1,160.08,0.71]
[1762392573311,7.36,160.1,160.06,0.71]
[1762392573521,7.36,160.1,160.07,0.71]
[1762392574402,7.36,160.1,160.07,6.95726218]
[1762392574802,7.36,160.1,160.07,0.71]
[1762392575811,7.36,160.1,160.06,6.24764606]
[1762392576122,7.36,160.1,160.06,6.91764606]
[1762392576494,9.36,160.1,160.06,6.24764606]
[1762392576697,9.36,160.1,160.06,6.91764606]
[1762392577426,9.36,160.1,160.07,0.67]
[1762392578009,9.36,160.1,160.07,2.83005242]
[1762392578323,9.36,160.1,160.08,2.16005242]
[1762392578520,9.36,160.1,160.09,8.40653877]
[1762392578729,9.36,160.1,160.09,6.91648635]
[1762392579325,9.36,160.1,160.09,9.07653877]
[1762392579908,9.36,160.1,160.09,6.91648635]
[1762392580227,9.36,160.1,160.09,9.07653877]
[1762392580801,9.36,160.1,160.09,2.83005242]
[1762392581002,9.36,160.1,160.09,9.07653877]
[1762392581231,9.36,160.1,160.09,6.91648635]
[1762392581427,9.36,160.1,160.09,9.07653877]
[1762392582328,2.0,160.1,160.09,9.07653877]
[1762392582922,2.0,160.1,160.09,18.86536646]
[1762392588329,2.0,160.1,160.09,6.91648635]
[1762392590738,2.0,160.1,160.07,6.91712772]
[1762392590920,2.0,160.1,160.07,6.24712772]
[1762392591129,2.0,160.1,160.08,0.67]
[1762392591619,2.0,160.1,160.09,5.62443524]
[1762392592015,2.0,160.1,160.09,6.31443524]
[1762392592645,2.0,160.1,160.09,12.56092159]
[1762392596955,2.0,160.1,160.06,12.56183478]
[1762392597236,2.0,160.1,160.06,6.31443524]
[1762392597617,0.72,160.09,160.05,6.24799794]
[1762392597839,7.36,160.08,160.05,6.24799794]
[1762392598218,7.36,160.08,160.05,11.87243318]
[1762392598932,2.0,160.1,160.07,5.62443524]
[1762392599137,2.0,160.1,160.09,5.62443524]
[1762392599530,2.0,160.1,160.09,6.31443524]
[1762392600129,2.0,160.1,160.09,16.10326293]
[1762392600333,2.0,160.1,160.09,22.34974928]
[1762392602135,0.72,160.2,160.1,9.78882769]
[1762392602447,6.34443524,160.23,160.14,9.78882769]
[1762392602755,0.72,160.26,160.21,5.62443524]
[1762392602961,0.72,160.26,160.16,9.78882769]
[1762392602962,16.88,160.27,160.23,5.62443524]
[1762392603125,16.88,160.27,160.16,30.38082769]
[1762392603126,7.36,160.27,160.24,5.62443524]
[1762392603325,7.36,160.28,160.23,5.62443524]
[1762392603546,27.952,160.28,160.24,5.62443524]
[1762392603846,33.57643524,160.28,160.22,6.31443524]
[1762392604053,34.29643524,160.28,160.22,6.31443524]
[1762392604350,13.70443524,160.28,160.23,6.24102852]
[1762392604850,13.70443524,160.28,160.23,12.55546376]
[1762392605063,13.70443524,160.28,160.23,0.69]
[1762392605357,5.62443524,160.24,160.17,12.55775008]
[1762392605521,20.592,160.25,160.17,12.55775008]
[1762392605522,5.62443524,160.23,160.18,5.62443524]
[1762392605725,7.36,160.23,160.19,5.62443524]
[1762392606030,7.36,160.23,160.18,6.31443524]
[1762392606434,7.36,160.23,160.19,5.62443524]
[1762392606633,7.36,160.23,160.19,12.55701699]
[1762392606844,7.36,160.23,160.19,6.31443524]
[1762392607624,7.36,160.23,160.19,12.55697314]
[1762392607952,7.36,160.23,160.19,0.69]
[1762392608255,7.36,160.23,160.19,12.55697125]
[1762392608453,7.36,160.23,160.2,5.62443524]
[1762392608640,26.21643524,160.25,160.2,6.31443524]
[1762392608953,7.36,160.24,160.2,6.31443524]
[1762392609162,7.36,160.24,160.21,5.62443524]
[1762392609330,6.34443524,160.29,160.23,5.62443524]
[1762392609657,7.36,160.28,160.24,5.62443524]
[1762392609962,27.952,160.28,160.24,5.62443524]
[1762392610158,8.08,160.28,160.24,5.62443524]
[1762392610330,8.08,160.28,160.25,5.62443524]
[1762392610527,20.592,160.27,160.24,12.5547806]
[1762392611038,8.08,160.28,160.24,12.5547806]
[1762392611436,7.36,160.28,160.25,5.62443524]
[1762392611756,7.36,160.28,160.26,5.62443524]
[1762392611931,7.36,160.28,160.26,6.31443524]
[1762392612345,7.36,160.28,160.27,5.62443524]
[1762392612548,7.36,160.28,160.27,12.55390613]
[1762392612744,0.2,160.3,160.27,12.55390613]
[1762392612745,0.2,160.3,160.28,9.78882769]
[1762392613029,0.2,160.3,160.29,16.10326293]
[1762392613564,1e-08,160.31,160.3,9.78882769]
[1762392613760,7.36,160.34,160.3,21.72769817]
[1762392613931,7.36,160.34,160.32,15.41326293]
[1762392614434,7.36,160.34,160.32,22.34078788]
[1762392614828,7.36,160.34,160.32,6.92752495]
[1762392615046,7.36,160.34,160.32,12.55196019]
[1762392615454,7.36,160.34,160.32,22.34078788]
[1762392616338,7.36,160.34,160.32,24.58908625]